[Event "44th Chess Olympiad Women 2022"]
[Site "Chennai"]
[Date "2022.08.01"]
[Round "4.42"]
[White "Vilhete, Vania Fausto Da T."]
[Black "Johannsdottir, Johanna Bjorg"]
[Result "0-1"]
[WhiteElo "1701"]
[BlackElo "1976"]
[Annotator "NA RC"]
[PlyCount "112"]
[EventDate "2022.??.??"]
[TimeControl "60"]

1. d4 {[%emt 0:00:06]} g6 {[%emt 0:00:10]} 2. c4 {[%emt 0:00:11]} Bg7 {[%emt 0:
00:00]} 3. Nc3 {[%emt 0:01:00]} d6 {[%emt 0:00:23]} 4. e4 {[%emt 0:00:49]} e5 {
[%emt 0:00:31]} 5. d5 {[%emt 0:00:22]} a5 {[%emt 0:00:11]} 6. Be2 {[%emt 0:00:
00]} Na6 {[%emt 0:00:12]} 7. h3 {[%emt 0:01:18]} Ne7 {[%emt 0:00:39]} 8. Bg5 {
[%emt 0:01:57]} h6 {[%emt 0:04:15]} 9. Bh4 {[%emt 0:05:22]} Nc5 {[%emt 0:02:02]
} 10. Nf3 {[%emt 0:02:45]} O-O {[%emt 0:00:31]} 11. Nd2 {[%emt 0:03:31]} g5 {
[%emt 0:05:20]} 12. Bg3 {[%emt 0:01:08]} f5 {[%emt 0:01:24]} 13. f3 {[%emt 0:
00:00]} Ng6 {[%emt 0:01:18]} 14. O-O {[%emt 0:01:30]} Nf4 {[%emt 0:04:22]} 15.
exf5 {[%emt 0:07:51]} Bxf5 {[%emt 0:00:14]} 16. Nde4 {[%emt 0:02:04]} b6 {
[%emt 0:03:33]} 17. Rc1 {[%emt 0:07:09]} Qd7 {[%emt 0:04:37]} 18. Nf2 {[%emt 0:
00:00]} Nh5 {[%emt 0:11:13]} 19. Bh2 {[%emt 0:00:21]} Nf6 {[%emt 0:00:15]} 20.
Qd2 {[%emt 0:09:34]} Rae8 {[%emt 0:01:12]} 21. Rce1 {[%emt 0:00:36]} Bg6 {
[%emt 0:15:48]} 22. Bd1 {[%emt 0:02:07]} Nh5 {[%emt 0:15:53]} 23. Nfe4 {
[%emt 0:06:31]} Re7 {[%emt 0:04:31]} 24. Bc2 {[%emt 0:03:17]} Bxe4 {[%emt 0:00:
00]} 25. Nxe4 {[%emt 0:00:46]} Nf4 {[%emt 0:00:54]} 26. Nxc5 {[%emt 0:07:56]}
bxc5 {[%emt 0:00:29]} 27. Qxa5 {[%emt 0:01:57]} e4 {[%emt 0:03:08]} 28. Bxe4 {
[%emt 0:04:05]} Bxb2 {[%emt 0:01:19]} 29. Qd2 {[%emt 0:03:06]} Be5 {[%emt 0:00:
00]} 30. Qc2 {[%emt 0:01:37]} Ree8 {[%emt 0:01:11]} 31. Rb1 {[%emt 0:02:21]}
Ra8 {[%emt 0:02:28]} 32. Rb7 {[%emt 0:03:26]} Ra3 {[%emt 0:02:56]} 33. Rb3 {
[%emt 0:04:34]} Rfa8 {[%emt 0:02:58]} 34. Rxa3 {[%emt 0:00:26]} Rxa3 {[%emt 0:
00:00]} 35. Bxf4 {[%emt 0:00:31]} Bxf4 {[%emt 0:02:10]} 36. Bf5 {[%emt 0:00:37]
} Qg7 {[%emt 0:01:57]} 37. Be6+ {[%emt 0:00:41]} Kf8 {[%emt 0:01:53]} 38. Qf5+
{[%emt 0:00:54]} Ke7 {[%emt 0:00:02]} 39. Re1 {[%emt 0:01:39]} Be5 {[%emt 0:00:
00]} 40. Re2 {[%emt 0:01:03]} Rc3 {[%emt 0:00:35]} 41. Qe4 {[%emt 0:30:34]}
Rc1+ {[%emt 0:09:58]} 42. Re1 {[%emt 0:00:00]} Rxe1+ {[%emt 0:01:18]} 43. Qxe1
{[%emt 0:00:00]} Qg6 {[%emt 0:07:54]} 44. Qd1 {[%emt 0:00:00]} Bc3 {[%emt 0:00:
00]} 45. g3 {[%emt 0:00:00]} h5 {[%emt 0:00:37]} 46. Kg2 {[%emt 0:00:00]} h4 {
[%emt 0:01:31]} 47. Qe2 {[%emt 0:02:35]} Kf6 {[%emt 0:01:12]} 48. Bg4 {[%emt 0:
00:00]} Be5 {[%emt 0:04:10]} 49. gxh4 {[%emt 0:00:00]} gxh4 {[%emt 0:00:34]}
50. Qe4 {[%emt 0:01:00]} Qg5 {[%emt 0:01:43]} 51. Qc2 {[%emt 0:01:21]} Qf4 {
[%emt 0:00:19]} 52. Kf1 {[%emt 0:00:18]} Bd4 {[%emt 0:03:11]} 53. a4 {[%emt 0:
00:00]} Qg3 {[%emt 0:00:09]} 54. Qf5+ {[%emt 0:00:34]} Ke7 {[%emt 0:00:31]} 55.
Qe6+ {[%emt 0:00:20]} Kf8 {[%emt 0:00:03]} 56. Qd7 {[%emt 0:00:33]} Qf2# {
[%emt 0:00:06]} 0-1

[Event "44th Chess Olympiad Women 2022"]
[Site "Chennai"]
[Date "2022.08.01"]
[Round "4.43"]
[White "Alvarez Gutierrez, Patricia"]
[Black "Seder, Randa"]
[Result "1-0"]
[WhiteElo "1715"]
[BlackElo "1442"]
[Annotator "NA RC"]
[PlyCount "133"]
[EventDate "2022.??.??"]
[TimeControl "60"]

1. d4 {[%emt 0:00:06]} Nf6 {[%emt 0:00:15]} 2. Bf4 {[%emt 0:00:19]} d5 {
[%emt 0:00:29]} 3. e3 {[%emt 0:00:20]} Bf5 {[%emt 0:00:41]} 4. c4 {[%emt 0:00:
00]} c6 {[%emt 0:00:58]} 5. Nc3 {[%emt 0:00:13]} g6 {[%emt 0:03:52]} 6. Qb3 {
[%emt 0:00:39]} e6 {[%emt 0:15:25]} 7. Qxb7 {[%emt 0:03:02]} Nbd7 {[%emt 0:00:
00]} 8. Qxc6 {[%emt 0:01:51]} Rc8 {[%emt 0:05:45]} 9. Qa4 {[%emt 0:02:58]} Qb6
{[%emt 0:01:47]} 10. Nb5 {[%emt 0:20:44]} a6 {[%emt 0:03:37]} 11. c5 {[%emt 0:
00:00]} axb5 {[%emt 0:00:50]} 12. Bxb5 {[%emt 0:01:35]} Bxc5 {[%emt 0:07:53]}
13. dxc5 {[%emt 0:02:09]} Rxc5 {[%emt 0:02:00]} 14. Bxd7+ {[%emt 0:02:33]} Nxd7
{[%emt 0:00:41]} 15. Qa8+ {[%emt 0:01:47]} Qd8 {[%emt 0:01:31]} 16. Qxd8+ {
[%emt 0:07:34]} Kxd8 {[%emt 0:00:12]} 17. Ne2 {[%emt 0:03:20]} Rc2 {[%emt 0:00:
00]} 18. Nd4 {[%emt 0:06:35]} Rxb2 {[%emt 0:00:39]} 19. Nc6+ {[%emt 0:01:05]}
Ke8 {[%emt 0:02:22]} 20. O-O {[%emt 0:05:07]} Rc2 {[%emt 0:00:59]} 21. Rfc1 {
[%emt 0:00:32]} f6 {[%emt 0:02:52]} 22. Rxc2 {[%emt 0:18:06]} Bxc2 {[%emt 0:00:
00]} 23. Nd4 {[%emt 0:00:20]} Bf5 {[%emt 0:00:37]} 24. Nxf5 {[%emt 0:00:49]}
gxf5 {[%emt 0:00:25]} 25. Bd6 {[%emt 0:01:20]} Kf7 {[%emt 0:01:10]} 26. a4 {
[%emt 0:01:14]} Ra8 {[%emt 0:00:34]} 27. a5 {[%emt 0:00:53]} e5 {[%emt 0:06:29]
} 28. g3 {[%emt 0:04:44]} Ke6 {[%emt 0:00:44]} 29. Bb4 {[%emt 0:01:22]} Nb8 {
[%emt 0:00:46]} 30. Bd2 {[%emt 0:01:39]} Nc6 {[%emt 0:01:18]} 31. Kg2 {[%emt 0:
00:00]} d4 {[%emt 0:00:35]} 32. exd4 {[%emt 0:01:13]} Nxd4 {[%emt 0:00:40]} 33.
Ra4 {[%emt 0:03:56]} Nb3 {[%emt 0:01:19]} 34. Bb4 {[%emt 0:01:05]} Kd5 {
[%emt 0:00:59]} 35. a6 {[%emt 0:01:46]} Nd4 {[%emt 0:01:18]} 36. Be7 {[%emt 0:
00:00]} Ke6 {[%emt 0:01:42]} 37. Bc5 {[%emt 0:00:21]} Nc6 {[%emt 0:01:17]} 38.
Bb6 {[%emt 0:00:45]} Kd7 {[%emt 0:01:13]} 39. a7 {[%emt 0:00:33]} Kc8 {[%emt 0:
00:00]} 40. Be3 {[%emt 0:00:30]} Kb7 {[%emt 0:00:42]} 41. Kh3 {[%emt 0:30:34]}
Nxa7 {[%emt 0:30:49]} 42. Rxa7+ {[%emt 0:00:24]} Rxa7 {[%emt 0:00:28]} 43. Bxa7
{[%emt 0:00:08]} Kxa7 {[%emt 0:00:07]} 44. Kh4 {[%emt 0:00:19]} e4 {[%emt 0:00:
00]} 45. Kh5 {[%emt 0:00:36]} Kb6 {[%emt 0:00:43]} 46. Kh6 {[%emt 0:00:12]} Kc5
{[%emt 0:00:17]} 47. Kxh7 {[%emt 0:00:44]} Kd5 {[%emt 0:02:52]} 48. Kg6 {
[%emt 0:00:21]} Ke6 {[%emt 0:01:58]} 49. h4 {[%emt 0:00:20]} Ke5 {[%emt 0:00:
00]} 50. h5 {[%emt 0:00:00]} f4 {[%emt 0:00:00]} 51. gxf4+ {[%emt 0:00:00]}
Kxf4 {[%emt 0:00:00]} 52. h6 {[%emt 0:00:00]} Kf3 {[%emt 0:00:00]} 53. h7 {
[%emt 0:00:00]} Kxf2 {[%emt 0:00:00]} 54. h8=Q {[%emt 0:00:00]} e3 {[%emt 0:00:
00]} 55. Qxf6+ {[%emt 0:00:00]} Ke1 {[%emt 0:00:00]} 56. Qc3+ {[%emt 0:00:00]}
Kf2 {[%emt 0:00:00]} 57. Qd4 {[%emt 0:00:00]} Kf3 {[%emt 0:00:00]} 58. Kg5 {
[%emt 0:00:00]} e2 {[%emt 0:00:00]} 59. Qf4+ {[%emt 0:00:00]} Kg2 {[%emt 0:00:
00]} 60. Qe3 {[%emt 0:00:00]} Kf1 {[%emt 0:00:00]} 61. Qf3+ {[%emt 0:00:00]}
Ke1 {[%emt 0:00:00]} 62. Kf4 {[%emt 0:00:00]} Kd2 {[%emt 0:00:00]} 63. Qe3+ {
[%emt 0:00:00]} Kd1 {[%emt 0:00:00]} 64. Qd3+ {[%emt 0:00:00]} Ke1 {[%emt 0:00:
00]} 65. Kf3 {[%emt 0:00:00]} Kf1 {[%emt 0:00:00]} 66. Qxe2+ {[%emt 0:00:00]}
Kg1 {[%emt 0:00:00]} 67. Qg2# {[%emt 0:00:00]} 1-0

[Event "44th Chess Olympiad Women 2022"]
[Site "Chennai"]
[Date "2022.08.01"]
[Round "4.43"]
[White "Eman Sawan"]
[Black "Ferrufino, Michelle"]
[Result "1-0"]
[WhiteElo "1847"]
[BlackElo "1811"]
[Annotator "NA RC"]
[PlyCount "95"]
[EventDate "2022.??.??"]
[TimeControl "60"]

1. e4 {[%emt 0:00:12]} d5 {[%emt 0:00:12]} 2. exd5 {[%emt 0:00:11]} Qxd5 {
[%emt 0:00:18]} 3. Nc3 {[%emt 0:00:20]} Qd6 {[%emt 0:00:18]} 4. d4 {[%emt 0:00:
00]} Nf6 {[%emt 0:00:20]} 5. Nf3 {[%emt 0:00:50]} c6 {[%emt 0:00:26]} 6. Ne5 {
[%emt 0:02:32]} Bf5 {[%emt 0:02:44]} 7. Bf4 {[%emt 0:01:18]} Nd5 {[%emt 0:00:
00]} 8. Nxd5 {[%emt 0:01:28]} Qxd5 {[%emt 0:00:24]} 9. f3 {[%emt 0:02:38]} e6 {
[%emt 0:12:54]} 10. Qd2 {[%emt 0:08:05]} h6 {[%emt 0:08:53]} 11. g4 {[%emt 0:
00:00]} Bh7 {[%emt 0:04:54]} 12. Bc4 {[%emt 0:02:00]} Qd8 {[%emt 0:01:10]} 13.
O-O-O {[%emt 0:05:16]} Be7 {[%emt 0:04:32]} 14. Bg3 {[%emt 0:10:40]} Nd7 {
[%emt 0:04:32]} 15. f4 {[%emt 0:03:48]} Nxe5 {[%emt 0:01:47]} 16. fxe5 {
[%emt 0:00:47]} Bg5 {[%emt 0:04:56]} 17. Bf4 {[%emt 0:00:19]} Bxf4 {[%emt 0:00:
00]} 18. Qxf4 {[%emt 0:00:11]} Qg5 {[%emt 0:00:33]} 19. Qxg5 {[%emt 0:00:41]}
hxg5 {[%emt 0:00:08]} 20. Rde1 {[%emt 0:13:07]} Bg6 {[%emt 0:04:34]} 21. Bf1 {
[%emt 0:02:42]} O-O-O {[%emt 0:04:54]} 22. c3 {[%emt 0:00:37]} Rh4 {[%emt 0:00:
00]} 23. h3 {[%emt 0:01:17]} Rdh8 {[%emt 0:03:42]} 24. Bg2 {[%emt 0:01:16]} Rd8
{[%emt 0:13:20]} 25. Rhf1 {[%emt 0:05:34]} Rd7 {[%emt 0:00:00]} 26. Rd1 {
[%emt 0:03:37]} Rh8 {[%emt 0:00:00]} 27. Kd2 {[%emt 0:06:54]} c5 {[%emt 0:00:
00]} 28. Ke3 {[%emt 0:00:19]} Rhd8 {[%emt 0:01:25]} 29. Rd2 {[%emt 0:02:25]}
cxd4+ {[%emt 0:02:10]} 30. Rxd4 {[%emt 0:01:01]} Rxd4 {[%emt 0:00:56]} 31. cxd4
{[%emt 0:00:04]} Kc7 {[%emt 0:01:29]} 32. Be4 {[%emt 0:01:08]} Rh8 {[%emt 0:00:
00]} 33. Rf3 {[%emt 0:03:25]} Bxe4 {[%emt 0:02:14]} 34. Rxf7+ {[%emt 0:00:10]}
Kc6 {[%emt 0:00:11]} 35. Kxe4 {[%emt 0:00:05]} Rxh3 {[%emt 0:01:12]} 36. Rxg7 {
[%emt 0:00:18]} Rh2 {[%emt 0:00:17]} 37. Re7 {[%emt 0:01:54]} Re2+ {[%emt 0:00:
00]} 38. Kd3 {[%emt 0:04:33]} Rxb2 {[%emt 0:00:44]} 39. Rxe6+ {[%emt 0:00:12]}
Kc7 {[%emt 0:01:07]} 40. d5 {[%emt 0:03:27]} Rb4 {[%emt 0:01:54]} 41. Re7+ {
[%emt 0:33:16]} Kb6 {[%emt 0:30:25]} 42. d6 {[%emt 0:02:37]} Rb1 {[%emt 0:00:
00]} 43. d7 {[%emt 0:01:14]} Kc7 {[%emt 0:00:17]} 44. e6 {[%emt 0:00:24]} Rd1+
{[%emt 0:00:40]} 45. Kc2 {[%emt 0:00:22]} Rd6 {[%emt 0:00:16]} 46. Re8 {
[%emt 0:00:22]} Rc6+ {[%emt 0:00:48]} 47. Kd3 {[%emt 0:00:18]} Rd6+ {[%emt 0:
00:00]} 48. Ke4 {[%emt 0:00:04]} 1-0

[Event "44th Chess Olympiad Women 2022"]
[Site "Chennai"]
[Date "2022.08.01"]
[Round "4.43"]
[White "Granados Diaz, Maria Esther"]
[Black "Heba, Assi"]
[Result "0-1"]
[WhiteElo "1888"]
[BlackElo "1449"]
[Annotator "NA RC"]
[PlyCount "78"]
[EventDate "2022.??.??"]
[TimeControl "60"]

1. e4 {[%emt 0:00:02]} c5 {[%emt 0:00:02]} 2. Nf3 {[%emt 0:00:05]} d6 {[%emt 0:
00:00]} 3. d4 {[%emt 0:00:05]} cxd4 {[%emt 0:00:04]} 4. Nxd4 {[%emt 0:00:05]}
Nf6 {[%emt 0:00:07]} 5. Nc3 {[%emt 0:00:06]} a6 {[%emt 0:00:07]} 6. Bg5 {
[%emt 0:00:11]} e6 {[%emt 0:00:03]} 7. f4 {[%emt 0:00:04]} Be7 {[%emt 0:01:17]}
8. Qf3 {[%emt 0:00:12]} Qc7 {[%emt 0:00:28]} 9. O-O-O {[%emt 0:00:10]} b5 {
[%emt 0:00:33]} 10. g4 {[%emt 0:00:18]} Bb7 {[%emt 0:00:36]} 11. Bg2 {[%emt 0:
00:00]} b4 {[%emt 0:01:13]} 12. Bxf6 {[%emt 0:02:44]} bxc3 {[%emt 0:01:59]} 13.
Bxg7 {[%emt 0:01:32]} cxb2+ {[%emt 0:01:50]} 14. Kb1 {[%emt 0:00:09]} Rg8 {
[%emt 0:01:29]} 15. Bh6 {[%emt 0:01:07]} Nd7 {[%emt 0:01:05]} 16. Rhe1 {
[%emt 0:08:43]} Rc8 {[%emt 0:02:49]} 17. Rd2 {[%emt 0:10:50]} d5 {[%emt 0:00:
00]} 18. exd5 {[%emt 0:04:49]} Bb4 {[%emt 0:04:00]} 19. Nxe6 {[%emt 0:04:30]}
fxe6 {[%emt 0:02:37]} 20. Rxe6+ {[%emt 0:00:08]} Kd8 {[%emt 0:03:21]} 21. Qh3 {
[%emt 0:07:05]} Qc5 {[%emt 0:12:03]} 22. d6 {[%emt 0:14:48]} Qg1+ {[%emt 0:00:
00]} 23. Bf1 {[%emt 0:00:28]} Rxg4 {[%emt 0:00:42]} 24. Rde2 {[%emt 0:03:17]}
Bxd6 {[%emt 0:10:03]} 25. Rxd6 {[%emt 0:02:35]} Bg2 {[%emt 0:02:41]} 26. Rxd7+
{[%emt 0:00:42]} Kxd7 {[%emt 0:00:09]} 27. Qd3+ {[%emt 0:00:15]} Kc7 {[%emt 0:
00:00]} 28. Re7+ {[%emt 0:00:16]} Kb8 {[%emt 0:00:36]} 29. Qd6+ {[%emt 0:00:27]
} Ka8 {[%emt 0:00:29]} 30. Qxa6+ {[%emt 0:00:09]} Kb8 {[%emt 0:00:40]} 31. Qb5+
{[%emt 0:34:04]} Ka8 {[%emt 0:00:52]} 32. Qa4+ {[%emt 0:00:09]} Kb8 {[%emt 0:
00:00]} 33. Qb4+ {[%emt 0:03:40]} Ka8 {[%emt 0:00:15]} 34. Qa3+ {[%emt 0:00:23]
} Kb8 {[%emt 0:00:40]} 35. Qxb2+ {[%emt 0:00:24]} Ka8 {[%emt 0:00:38]} 36. Qa3+
{[%emt 0:00:16]} Kb8 {[%emt 0:00:14]} 37. Qd6+ {[%emt 0:01:02]} Ka8 {[%emt 0:
00:00]} 38. Qa6+ {[%emt 0:00:46]} Kb8 {[%emt 0:00:10]} 39. Re1 {[%emt 0:10:08]}
Rg6 {[%emt 0:08:45]} 0-1

[Event "44th Chess Olympiad Women 2022"]
[Site "Chennai"]
[Date "2022.08.01"]
[Round "4.43"]
[White "Taqwa, Hamouri"]
[Black "Granados Ortiz, Maria Jose"]
[Result "1-0"]
[WhiteElo "1214"]
[BlackElo "1753"]
[Annotator "NA RC"]
[PlyCount "71"]
[EventDate "2022.??.??"]
[TimeControl "60"]

1. e4 {[%emt 0:00:02]} Nf6 {[%emt 0:00:00]} 2. e5 {[%emt 0:00:17]} Nd5 {
[%emt 0:00:00]} 3. d4 {[%emt 0:00:14]} d6 {[%emt 0:00:00]} 4. Bc4 {[%emt 0:00:
00]} e6 {[%emt 0:01:07]} 5. Nf3 {[%emt 0:00:24]} Be7 {[%emt 0:01:11]} 6. O-O {
[%emt 0:00:53]} O-O {[%emt 0:00:10]} 7. Qe2 {[%emt 0:01:12]} Nc6 {[%emt 0:00:
00]} 8. a3 {[%emt 0:01:51]} h6 {[%emt 0:01:45]} 9. Bd3 {[%emt 0:01:40]} f5 {
[%emt 0:04:41]} 10. c3 {[%emt 0:08:34]} dxe5 {[%emt 0:05:26]} 11. Nxe5 {
[%emt 0:04:36]} Nxe5 {[%emt 0:00:35]} 12. dxe5 {[%emt 0:00:49]} Bc5 {[%emt 0:
00:00]} 13. Rd1 {[%emt 0:02:47]} Qe8 {[%emt 0:01:58]} 14. b4 {[%emt 0:02:04]}
Be7 {[%emt 0:02:17]} 15. f4 {[%emt 0:08:55]} c5 {[%emt 0:16:19]} 16. Bc4 {
[%emt 0:06:46]} Nc7 {[%emt 0:05:02]} 17. Be3 {[%emt 0:01:50]} cxb4 {[%emt 0:00:
00]} 18. axb4 {[%emt 0:00:53]} b5 {[%emt 0:04:36]} 19. Bb3 {[%emt 0:02:02]} a6
{[%emt 0:00:49]} 20. Bb6 {[%emt 0:01:43]} Qc6 {[%emt 0:02:07]} 21. Bxc7 {
[%emt 0:01:01]} Qxc7 {[%emt 0:00:17]} 22. Rd3 {[%emt 0:06:08]} Qb6+ {[%emt 0:
00:00]} 23. Kh1 {[%emt 0:02:01]} Rd8 {[%emt 0:09:11]} 24. Rxd8+ {[%emt 0:03:27]
} Bxd8 {[%emt 0:00:01]} 25. Na3 {[%emt 0:03:04]} Rb8 {[%emt 0:05:07]} 26. Rd1 {
[%emt 0:02:54]} Be7 {[%emt 0:00:27]} 27. Nc2 {[%emt 0:00:46]} Kh8 {[%emt 0:00:
00]} 28. Nd4 {[%emt 0:00:50]} a5 {[%emt 0:02:38]} 29. bxa5 {[%emt 0:00:31]}
Qxa5 {[%emt 0:00:11]} 30. Nc6 {[%emt 0:10:28]} Qc7 {[%emt 0:00:08]} 31. Nxb8 {
[%emt 0:01:03]} Qxb8 {[%emt 0:00:02]} 32. Qh5 {[%emt 0:00:48]} Qc7 {[%emt 0:00:
00]} 33. Qf7 {[%emt 0:03:57]} Bb7 {[%emt 0:09:52]} 34. Bxe6 {[%emt 0:01:45]}
Kh7 {[%emt 0:00:56]} 35. Qg8+ {[%emt 0:00:28]} Kg6 {[%emt 0:00:08]} 36. Bf7# {
[%emt 0:00:16]} 1-0

[Event "44th Chess Olympiad Women 2022"]
[Site "Chennai"]
[Date "2022.08.01"]
[Round "4.44"]
[White "Abrorova, Sabrina"]
[Black "Moore, Gaybrianna"]
[Result "1-0"]
[WhiteElo "1799"]
[BlackElo "1335"]
[Annotator "NA RC"]
[PlyCount "85"]
[EventDate "2022.??.??"]
[TimeControl "60"]

1. d4 {[%emt 0:00:14]} d5 {[%emt 0:00:08]} 2. c4 {[%emt 0:00:24]} e6 {[%emt 0:
00:00]} 3. Nf3 {[%emt 0:00:31]} Be7 {[%emt 0:00:21]} 4. Nc3 {[%emt 0:00:51]}
Nf6 {[%emt 0:00:32]} 5. Bg5 {[%emt 0:00:42]} h6 {[%emt 0:00:22]} 6. Bh4 {
[%emt 0:00:15]} Ne4 {[%emt 0:00:32]} 7. Bxe7 {[%emt 0:01:40]} Qxe7 {[%emt 0:00:
00]} 8. Qc2 {[%emt 0:04:17]} Nxc3 {[%emt 0:00:39]} 9. Qxc3 {[%emt 0:01:02]} O-O
{[%emt 0:01:45]} 10. e3 {[%emt 0:01:05]} dxc4 {[%emt 0:00:42]} 11. Bxc4 {
[%emt 0:06:20]} b6 {[%emt 0:00:35]} 12. O-O {[%emt 0:01:15]} Bb7 {[%emt 0:00:
00]} 13. Be2 {[%emt 0:00:56]} Rc8 {[%emt 0:01:59]} 14. b4 {[%emt 0:14:33]} c5 {
[%emt 0:07:32]} 15. dxc5 {[%emt 0:04:11]} Ba6 {[%emt 0:02:10]} 16. Bxa6 {
[%emt 0:03:41]} Nxa6 {[%emt 0:00:13]} 17. Qa3 {[%emt 0:01:26]} Qb7 {[%emt 0:00:
00]} 18. c6 {[%emt 0:01:51]} Qxc6 {[%emt 0:04:35]} 19. Qxa6 {[%emt 0:00:30]}
Qc3 {[%emt 0:01:04]} 20. a3 {[%emt 0:01:25]} Rc7 {[%emt 0:01:29]} 21. Nd4 {
[%emt 0:07:49]} Qb2 {[%emt 0:02:44]} 22. Qe2 {[%emt 0:01:11]} Qxe2 {[%emt 0:00:
00]} 23. Nxe2 {[%emt 0:00:04]} Rac8 {[%emt 0:00:35]} 24. Rfc1 {[%emt 0:02:30]}
Rc2 {[%emt 0:00:59]} 25. Kf1 {[%emt 0:03:25]} Kf8 {[%emt 0:01:18]} 26. Ke1 {
[%emt 0:01:10]} Rxc1+ {[%emt 0:00:17]} 27. Rxc1 {[%emt 0:00:06]} Rxc1+ {
[%emt 0:00:11]} 28. Nxc1 {[%emt 0:00:02]} Ke7 {[%emt 0:00:10]} 29. Kd2 {
[%emt 0:00:40]} Kd6 {[%emt 0:00:17]} 30. Kd3 {[%emt 0:00:42]} f5 {[%emt 0:00:
00]} 31. Ne2 {[%emt 0:07:10]} e5 {[%emt 0:00:41]} 32. Nc3 {[%emt 0:00:49]} a6 {
[%emt 0:01:38]} 33. f4 {[%emt 0:04:13]} exf4 {[%emt 0:02:51]} 34. exf4 {
[%emt 0:00:09]} g5 {[%emt 0:00:39]} 35. g3 {[%emt 0:00:22]} b5 {[%emt 0:02:17]}
36. Kd4 {[%emt 0:00:21]} g4 {[%emt 0:01:35]} 37. Nd5 {[%emt 0:00:23]} h5 {
[%emt 0:07:55]} 38. Ne3 {[%emt 0:01:07]} Kc6 {[%emt 0:07:06]} 39. Ke5 {[%emt 0:
00:00]} Kb6 {[%emt 0:00:19]} 40. Kxf5 {[%emt 0:00:12]} a5 {[%emt 0:00:21]} 41.
Ke6 {[%emt 0:30:15]} axb4 {[%emt 0:31:17]} 42. axb4 {[%emt 0:00:02]} Kc7 {
[%emt 0:00:13]} 43. Ke5 {[%emt 0:05:11]} 1-0

[Event "44th Chess Olympiad Women 2022"]
[Site "Chennai"]
[Date "2022.08.01"]
[Round "4.44"]
[White "Blackman, Katrina"]
[Black "Antonova, Nadezhda"]
[Result "0-1"]
[WhiteElo "1691"]
[BlackElo "1832"]
[Annotator "NA RC"]
[PlyCount "68"]
[EventDate "2022.??.??"]
[TimeControl "60"]

1. d4 {[%emt 0:00:03]} Nf6 {[%emt 0:00:12]} 2. Nf3 {[%emt 0:00:08]} g6 {
[%emt 0:00:24]} 3. Bf4 {[%emt 0:00:07]} Bg7 {[%emt 0:00:11]} 4. e3 {[%emt 0:00:
00]} O-O {[%emt 0:00:19]} 5. h3 {[%emt 0:01:09]} d6 {[%emt 0:00:14]} 6. Be2 {
[%emt 0:00:50]} Nfd7 {[%emt 0:01:16]} 7. Nbd2 {[%emt 0:01:32]} e5 {[%emt 0:00:
00]} 8. dxe5 {[%emt 0:00:06]} dxe5 {[%emt 0:00:17]} 9. Bh2 {[%emt 0:00:37]} Qe7
{[%emt 0:04:29]} 10. c3 {[%emt 0:08:29]} Nc6 {[%emt 0:02:13]} 11. O-O {[%emt 0:
00:00]} a5 {[%emt 0:00:30]} 12. Qc2 {[%emt 0:07:50]} f5 {[%emt 0:02:24]} 13.
Rfe1 {[%emt 0:05:12]} g5 {[%emt 0:00:37]} 14. Bg3 {[%emt 0:06:05]} Kh8 {
[%emt 0:03:21]} 15. Nc4 {[%emt 0:14:41]} Nc5 {[%emt 0:01:35]} 16. Nfd2 {
[%emt 0:01:07]} Be6 {[%emt 0:04:38]} 17. Rad1 {[%emt 0:02:32]} Bf7 {[%emt 0:00:
00]} 18. Bh2 {[%emt 0:10:04]} Bg6 {[%emt 0:02:16]} 19. Bf3 {[%emt 0:07:16]} e4
{[%emt 0:00:55]} 20. Be2 {[%emt 0:00:29]} f4 {[%emt 0:00:48]} 21. Qc1 {[%emt 0:
00:00]} b5 {[%emt 0:06:26]} 22. Na3 {[%emt 0:00:48]} Ne5 {[%emt 0:00:02]} 23.
Rf1 {[%emt 0:04:39]} c6 {[%emt 0:00:42]} 24. exf4 {[%emt 0:08:55]} gxf4 {
[%emt 0:01:44]} 25. f3 {[%emt 0:01:21]} Ncd3 {[%emt 0:01:27]} 26. Qc2 {[%emt 0:
00:00]} Qc5+ {[%emt 0:00:26]} 27. Kh1 {[%emt 0:00:03]} exf3 {[%emt 0:00:14]}
28. Bg1 {[%emt 0:01:14]} Qe7 {[%emt 0:03:25]} 29. Bxd3 {[%emt 0:01:19]} Bxd3 {
[%emt 0:00:03]} 30. Qc1 {[%emt 0:02:04]} Bxf1 {[%emt 0:00:12]} 31. Rxf1 {
[%emt 0:00:02]} fxg2+ {[%emt 0:00:17]} 32. Kxg2 {[%emt 0:00:03]} Qg5+ {[%emt 0:
00:00]} 33. Kh1 {[%emt 0:00:02]} f3 {[%emt 0:00:13]} 34. Rf2 {[%emt 0:00:11]}
Nd3 {[%emt 0:00:09]} 0-1

[Event "44th Chess Olympiad Women 2022"]
[Site "Chennai"]
[Date "2022.08.01"]
[Round "4.44"]
[White "Eversley, Kiarra"]
[Black "Saidova, Rukhshona"]
[Result "0-1"]
[WhiteElo "1356"]
[BlackElo "1624"]
[Annotator "NA RC"]
[PlyCount "94"]
[EventDate "2022.??.??"]
[TimeControl "60"]

1. e4 {[%emt 0:00:04]} e5 {[%emt 0:00:10]} 2. Nf3 {[%emt 0:00:29]} Nc6 {
[%emt 0:00:11]} 3. d4 {[%emt 0:00:06]} exd4 {[%emt 0:00:20]} 4. Nxd4 {[%emt 0:
00:00]} Nf6 {[%emt 0:00:36]} 5. Nxc6 {[%emt 0:01:48]} bxc6 {[%emt 0:00:18]} 6.
Bd3 {[%emt 0:03:15]} Bc5 {[%emt 0:01:53]} 7. Qe2 {[%emt 0:02:14]} O-O {[%emt 0:
00:00]} 8. O-O {[%emt 0:01:05]} Re8 {[%emt 0:01:57]} 9. Qf3 {[%emt 0:03:16]} d6
{[%emt 0:05:32]} 10. Bg5 {[%emt 0:04:24]} Bd4 {[%emt 0:15:30]} 11. c3 {[%emt 0:
00:00]} Be5 {[%emt 0:01:04]} 12. Nd2 {[%emt 0:03:14]} h6 {[%emt 0:06:37]} 13.
Bxf6 {[%emt 0:07:30]} Bxf6 {[%emt 0:00:43]} 14. Nc4 {[%emt 0:00:57]} Be6 {
[%emt 0:02:30]} 15. Ne3 {[%emt 0:00:38]} Rb8 {[%emt 0:02:02]} 16. Qe2 {[%emt 0:
00:00]} d5 {[%emt 0:05:44]} 17. exd5 {[%emt 0:01:02]} cxd5 {[%emt 0:00:37]} 18.
Qc2 {[%emt 0:01:16]} d4 {[%emt 0:04:44]} 19. Rfd1 {[%emt 0:00:31]} c5 {[%emt 0:
00:00]} 20. Nc4 {[%emt 0:24:17]} Bxc4 {[%emt 0:02:25]} 21. Bxc4 {[%emt 0:00:05]
} Qe7 {[%emt 0:02:58]} 22. Rd2 {[%emt 0:07:11]} dxc3 {[%emt 0:05:22]} 23. bxc3
{[%emt 0:01:21]} Qe5 {[%emt 0:02:12]} 24. Rd7 {[%emt 0:03:15]} Re7 {[%emt 0:00:
00]} 25. Rxe7 {[%emt 0:03:51]} Qxe7 {[%emt 0:00:45]} 26. h3 {[%emt 0:01:25]}
Be5 {[%emt 0:08:45]} 27. Rd1 {[%emt 0:01:57]} Qf6 {[%emt 0:01:44]} 28. Rd7 {
[%emt 0:00:43]} Rf8 {[%emt 0:01:10]} 29. Rxa7 {[%emt 0:02:20]} Qf4 {[%emt 0:00:
00]} 30. Qd3 {[%emt 0:04:30]} Qc1+ {[%emt 0:05:29]} 31. Qf1 {[%emt 0:00:07]}
Qxc3 {[%emt 0:00:25]} 32. a4 {[%emt 0:09:46]} Bb8 {[%emt 0:02:41]} 33. Rb7 {
[%emt 0:04:01]} Qe5 {[%emt 0:00:45]} 34. g3 {[%emt 0:00:53]} Bc7 {[%emt 0:00:
00]} 35. Rb5 {[%emt 0:01:51]} Qd4 {[%emt 0:02:24]} 36. Kg2 {[%emt 0:02:09]} Ra8
{[%emt 0:03:02]} 37. Bb3 {[%emt 0:00:46]} Rd8 {[%emt 0:01:29]} 38. Qe2 {
[%emt 0:02:10]} Qd6 {[%emt 0:03:22]} 39. Qh5 {[%emt 0:00:15]} Qc6+ {[%emt 0:00:
00]} 40. Kg1 {[%emt 0:01:02]} Qe8 {[%emt 0:01:19]} 41. Qxc5 {[%emt 0:30:40]}
Bxg3 {[%emt 0:30:46]} 42. fxg3 {[%emt 0:00:07]} Qe1+ {[%emt 0:00:18]} 43. Kg2 {
[%emt 0:09:17]} Rd2+ {[%emt 0:00:00]} 44. Kf3 {[%emt 0:00:00]} Rd3+ {[%emt 0:
00:00]} 45. Kf4 {[%emt 0:00:00]} g5+ {[%emt 0:00:00]} 46. Kf5 {[%emt 0:00:00]}
Rf3+ {[%emt 0:00:00]} 47. Kg4 {[%emt 0:00:00]} Qxg3+ {[%emt 0:00:00]} 0-1